bitfinex-derivatives/quotes_ETHF0:USTF0_20241027
["timestamp","ask_amount","ask_price","bid_price","bid_amount"]
[1730059853752,0.40108,2496.2,2496.1,4.76600959]
[1730059856266,0.40108,2496.2,2496.1,1.55820959]
[1730059856467,0.40108,2496.2,2496.1,4.76600959]
[1730059857064,0.40108,2496.2,2496.1,1.55820959]
[1730059857977,0.40108,2496.2,2496.1,4.76600959]
[1730059858269,0.40108,2496.2,2496.1,1.55820959]
[1730059858663,0.40108,2496.2,2496.1,4.76600959]
[1730059859263,0.40108,2496.2,2496.1,1.55820959]
[1730059860163,0.40108,2496.2,2496.1,4.36492959]
[1730059860865,0.40108,2496.2,2496.1,4.76600959]
[1730059861464,0.40108,2496.2,2495.8,1.86802]
[1730059861465,1.00273,2496.1,2495.8,3.60892]
[1730059861662,0.40111,2495.9,2495.8,3.60892]
[1730059861863,0.40111,2495.9,2495.8,4.76604959]
[1730059862062,1.28101,2495.9,2495.8,4.76604959]
[1730059862365,1.28101,2495.9,2495.8,3.2078]
[1730059862861,6.44453959,2495.9,2495.8,3.2078]
[1730059863560,6.44453959,2495.9,2495.8,2.5288]
[1730059863764,0.40116,2495.6,2495.5,1.15712959]
[1730059863961,1.55828959,2495.6,2495.5,1.15712959]
[1730059865364,1.15712959,2495.6,2495.4,3.60899]
[1730059865562,1.15712959,2495.5,2495.4,1.15712959]
[1730059865764,1.55830959,2495.5,2495.4,1.55831959]
[1730059865964,1.05830959,2495.5,2495.4,1.55831959]
[1730059866967,0.40123,2495.2,2495.1,3.2078]
[1730059867175,0.40123,2495.2,2495.1,4.76616959]
[1730059868270,0.40123,2495.2,2495.1,4.36492959]
[1730059868472,0.40123,2495.2,2495.1,4.76616959]
[1730059869068,0.40123,2495.2,2495.1,4.36492959]
[1730059869371,1.55835959,2495.2,2495.1,3.2078]
[1730059869571,6.16821959,2495.2,2494.8,3.6198]
[1730059869868,6.16821959,2495.2,2494.8,4.77692959]
[1730059869869,0.40127,2494.9,2494.8,4.77692959]
[1730059870372,1.97909959,2494.9,2494.8,3.2078]
[1730059870761,0.82197,2494.9,2494.8,4.36492959]
[1730059872572,0.82197,2494.9,2494.8,3.2078]
[1730059872762,0.82197,2494.9,2494.8,4.78812959]
[1730059873464,0.82197,2494.9,2494.8,1.58032959]
[1730059875575,0.82197,2494.9,2494.8,1.98161959]
[1730059875967,0.82197,2494.9,2494.8,1.58032959]
[1730059876168,0.82197,2494.9,2494.8,1.98161959]
[1730059879776,0.4462,2495.1,2494.8,2.73745918]
[1730059879980,13.87343509,2496.2,2494.8,2.73745918]
[1730059879981,0.82,2495.4,2495.0,1.15712959]
[1730059880282,0.82,2495.4,2494.9,4.21099]
[1730059880283,1.22119,2495.4,2495.3,1.55833959]
[1730059880476,1.22119,2495.4,2495.2,1.55834959]
[1730059880477,0.82,2495.4,2495.2,1.55834959]
[1730059880776,0.40121,2495.3,2495.2,1.55834959]
[1730059883275,0.40121,2495.3,2495.2,1.15712959]
[1730059883577,0.40121,2495.3,2495.2,1.55835959]
[1730059887880,0.40121,2495.3,2495.2,1.15712959]
[1730059889071,0.40121,2495.3,2495.2,1.55835959]
[1730059890069,0.40121,2495.3,2495.2,1.15712959]
[1730059891881,0.40123,2495.2,2495.1,2.80845959]
[1730059895987,0.82323,2495.2,2495.1,2.80845959]
[1730059897488,0.40127,2495.0,2494.9,0.40127]
[1730059897678,0.40127,2495.0,2494.9,2.00869959]
[1730059897883,0.40127,2495.0,2494.9,0.4503]
[1730059898092,0.40127,2495.0,2494.9,1.60742959]
[1730059898296,0.40127,2494.9,2494.8,1.97652959]
[1730059898588,0.40127,2494.9,2494.8,1.96601959]
[1730059898589,0.83677,2494.9,2494.8,1.96601959]
[1730059903793,0.445,2495.1,2494.8,1.56472959]
[1730059904007,3.2078,2495.3,2495.1,0.40124]
[1730059904008,0.83924,2495.2,2495.1,0.40124]
[1730059904205,0.40124,2495.2,2495.1,2.00736959]
[1730059908400,0.82,2495.3,2495.2,0.40123]
[1730059908696,0.4012,2495.5,2495.4,0.40118]
[1730059908894,0.4012,2495.5,2495.4,1.55830959]
[1730059925604,0.4327,2495.7,2495.4,1.15712959]
[1730059925812,0.83386,2495.7,2495.6,1.55828959]
[1730059926503,0.83386,2495.7,2495.6,2.39008959]
[1730059928508,0.4327,2495.7,2495.6,2.39008959]
[1730059928815,0.83384,2495.7,2495.6,2.39008959]
[1730059939319,0.83384,2495.7,2495.6,0.8318]
[1730059940020,0.83384,2495.7,2495.6,1.23296]
[1730059940319,0.83384,2495.7,2495.6,0.8318]
[1730059943215,0.83384,2495.7,2495.6,1.23296]
[1730059943720,0.83384,2495.7,2495.6,0.8318]
[1730059945222,0.83384,2495.7,2495.6,1.23296]
[1730059946520,0.83384,2495.7,2495.6,0.8318]
[1730059946927,0.83384,2495.7,2495.6,1.23296]
[1730059950127,0.83384,2495.7,2495.6,0.8318]
[1730059950322,0.83384,2495.7,2495.5,1.98719959]
[1730059950323,0.40116,2495.6,2495.5,0.83007]
[1730059950527,0.40116,2495.6,2495.5,0.40117]
[1730059953523,0.40116,2495.6,2495.5,1.55829959]
[1730059963332,0.40118,2495.5,2495.4,0.83749]
[1730059963735,0.40118,2495.5,2495.4,1.99461959]
[1730059969135,0.40118,2495.5,2495.4,1.59342959]
[1730059969841,0.40118,2495.5,2495.4,1.99461959]
[1730059970241,0.40118,2495.5,2495.4,3.04295841]
[1730059970837,0.40118,2495.5,2495.4,1.99461959]
[1730059975045,0.40118,2495.5,2495.4,1.59342959]
[1730059975347,1.58702959,2495.6,2495.3,3.45256841]
[1730059975647,0.81009,2495.4,2495.3,2.60666841]
[1730059976545,0.81009,2495.4,2495.3,1.55832959]
[1730059978347,0.81009,2495.4,2495.3,1.15712959]
[1730059979137,1.96721959,2495.4,2495.3,1.15712959]
[1730059979338,0.40121,2495.3,2495.2,1.3023]
[1730059979643,0.40123,2495.2,2495.1,4.65861605]
[1730059979839,1.55835959,2495.2,2495.1,4.25737605]
[1730059982542,1.55835959,2495.2,2495.1,4.65861605]
[1730059983344,0.40123,2495.2,2495.1,5.81574564]
[1730059983748,0.40123,2495.2,2495.1,2.60794564]
[1730059983948,5.36790959,2495.5,2495.1,5.41450564]
[1730059984251,0.40121,2495.4,2495.3,1.55831959]
[1730059984447,0.40121,2495.4,2495.3,2.01001959]
[1730059984750,1.22119,2495.5,2495.4,0.40119]
[1730059984944,1.22119,2495.5,2495.4,1.55831959]
[1730059985145,2.97996959,2495.8,2495.4,1.15712959]
[1730059985342,0.40118,2495.6,2495.5,0.82216]
[1730059986250,0.40118,2495.6,2495.5,1.57812959]
[1730059986543,0.40118,2495.6,2495.5,1.97930959]
[1730059986750,0.84828,2495.6,2495.5,1.97930959]
[1730059990052,0.40116,2495.7,2495.6,0.40114]
[1730059990248,0.40116,2495.7,2495.6,1.55826959]
[1730059990455,1.22114,2495.8,2495.7,0.40114]
[1730059990758,1.22114,2495.8,2495.7,0.82384]
[1730059991354,0.40114,2495.8,2495.7,1.98096959]
[1730059992045,0.40113,2495.8,2495.7,1.98096959]
[1730059995645,0.40113,2495.8,2495.7,0.82384]
[1730059999249,1.15712959,2495.8,2495.5,3.6288]
[1730059999448,1.55828959,2495.7,2495.6,0.40115]
[1730059999951,0.40116,2495.6,2495.5,1.97928959]
[1730060000151,0.83746,2495.6,2495.5,1.97928959]
[1730060006057,0.40116,2495.6,2495.5,1.97928959]
[1730060012454,0.40116,2495.6,2495.5,0.82216]
[1730060012661,0.82716,2495.6,2495.5,0.82216]
[1730060019269,0.82716,2495.6,2495.5,0.421]
[1730060019565,0.82716,2495.6,2495.5,0.82218]
[1730060020166,0.82716,2495.6,2495.5,0.421]
[1730060020776,0.82716,2495.6,2495.5,0.82218]
[1730060021769,0.40118,2495.5,2495.4,3.03838564]
[1730060022068,0.40118,2495.5,2495.4,1.98880959]
[1730060026467,0.40118,2495.5,2495.4,0.83168]
[1730060029466,0.40118,2495.5,2495.4,0.40118]
[1730060030069,0.40118,2495.5,2495.4,1.55830959]
[1730060035077,0.40118,2495.5,2495.4,2.60788564]
[1730060037276,0.40118,2495.5,2495.4,1.45075605]
[1730060043783,0.40118,2495.5,2495.4,3.45834326]
[1730060044582,0.40118,2495.5,2495.4,1.45075605]
[1730060045379,0.40118,2495.5,2495.4,3.45835816]
[1730060047778,0.40118,2495.5,2495.4,3.45833826]
[1730060048178,0.40118,2495.5,2495.4,2.40876221]
[1730060048783,0.40118,2495.5,2495.4,3.46195954]
[1730060048979,0.40118,2495.5,2495.4,2.40876221]
[1730060049376,0.40118,2495.5,2495.4,3.98312629]
[1730060050184,0.40118,2495.5,2495.4,0.40118]
[1730060053079,1.2652,2495.7,2495.4,1.15712959]
[1730060053387,0.40117,2495.6,2495.5,1.27416]
[1730060053584,0.819,2495.8,2495.5,2.03012959]
[1730060053785,1.22015,2495.8,2495.7,0.40113]
[1730060056887,2.37727959,2495.8,2495.7,0.40113]
[1730060059691,2.37727959,2495.8,2495.7,1.55825959]
[1730060061490,0.40114,2495.7,2495.6,0.81875]
[1730060062788,1.15712959,2495.7,2495.5,1.50079683]
[1730060062981,1.22866,2495.6,2495.5,1.45436683]
[1730060065084,1.22866,2495.6,2495.5,0.40117]
[1730060067591,0.81356,2495.6,2495.5,0.40117]
[1730060067987,0.40116,2495.7,2495.6,0.40116]
[1730060068191,0.40116,2495.7,2495.6,1.26876]
[1730060073306,0.40116,2495.7,2495.6,2.32195683]
[1730060074498,0.40116,2495.7,2495.6,1.89265683]
[1730060080309,0.40118,2495.5,2495.4,4.05948]
[1730060080497,1.55830959,2495.5,2495.4,0.40118]
[1730060082301,2.16008959,2495.5,2495.2,1.05319683]
[1730060082498,0.40123,2495.2,2495.1,5.81935642]
[1730060084511,0.40123,2495.2,2495.1,2.61155642]
[1730060088323,3.22202959,2495.4,2495.1,7.18012438]
[1730060088516,0.40123,2495.3,2495.2,4.51408932]
[1730060089709,0.40123,2495.3,2495.2,5.67121891]
[1730060091712,0.40123,2495.3,2495.2,5.6711675]
[1730060095310,0.40123,2495.3,2495.2,3.56595311]
[1730060097714,0.40123,2495.3,2495.2,5.6711675]
[1730060097912,0.40123,2495.3,2495.2,5.67114453]
[1730060098306,3.22202959,2495.4,2495.2,5.26993453]
[1730060098611,3.62323959,2495.4,2495.3,3.98743448]
[1730060098913,3.62323959,2495.4,2495.3,4.43073448]
[1730060099112,3.62323959,2495.4,2495.3,3.98743448]
[1730060100815,3.62323959,2495.4,2495.3,3.98744692]
[1730060103419,3.62323959,2495.4,2495.3,0.40121]
[1730060104010,0.40121,2495.3,2495.2,1.45348342]
[1730060104212,1.55833959,2495.3,2495.2,1.45348342]
[1730060107220,1.55833959,2495.3,2495.1,4.80822959]
[1730060107221,0.40123,2495.2,2495.1,5.86050301]
[1730060108125,0.40123,2495.2,2495.1,4.80822959]
[1730060109219,0.40123,2495.2,2495.1,3.2078]
[1730060109421,1.15712959,2495.2,2494.9,1.05227342]
[1730060109625,1.15712959,2495.0,2494.8,4.70757342]
[1730060109927,1.05839959,2495.0,2494.8,4.70757342]
[1730060110118,1.05839959,2495.0,2494.8,5.10886342]
[1730060110119,0.40127,2494.9,2494.8,5.10886342]
[1730060110312,0.40127,2494.9,2494.8,4.70757342]
[1730060110515,0.40127,2494.9,2494.8,7.64317992]
[1730060110719,0.40127,2494.9,2494.8,7.24188992]
[1730060110919,0.40127,2494.9,2494.8,7.64317992]
[1730060111525,0.40127,2494.9,2494.8,8.80030951]
[1730060112626,0.40127,2494.9,2494.8,2.6567923]
[1730060114130,0.40127,2494.9,2494.8,3.0580823]
[1730060114526,0.40127,2494.9,2494.8,2.00591959]
[1730060120628,1.00309,2495.2,2495.1,0.40123]
[1730060120629,1.22024,2495.2,2495.1,0.40123]
[1730060120829,1.22024,2495.2,2495.1,1.55835959]
[1730060121632,1.22024,2495.2,2495.1,1.99255959]
[1730060126927,1.22024,2495.2,2495.1,1.55835959]
[1730060127436,1.22024,2495.2,2495.1,1.15712959]
[1730060130534,0.819,2495.2,2495.0,1.55836959]
[1730060130834,0.40124,2495.1,2495.0,1.55836959]
[1730060134334,0.40124,2495.1,2495.0,1.15712959]
[1730060134531,0.819,2495.2,2494.8,3.2078]
[1730060134532,1.97612959,2495.2,2494.9,1.55838959]
[1730060134736,0.40126,2495.0,2494.9,1.55838959]
[1730060135631,2.97915959,2495.2,2494.9,1.55838959]
[1730060135833,0.85086,2495.1,2495.0,0.40125]
[1730060136032,0.44956,2495.1,2495.0,0.40125]
[1730060136837,0.40126,2495.0,2494.9,1.55838959]
[1730060137237,0.0483,2495.1,2495.0,0.40125]
[1730060137238,0.40126,2495.1,2495.0,0.40125]
[1730060138832,2.37732959,2495.2,2495.1,0.40124]
[1730060139036,2.37732959,2495.2,2495.1,1.24964]
[1730060139037,1.2202,2495.2,2495.1,1.24964]
[1730060139340,1.2202,2495.2,2495.1,1.2886]
[1730060139843,0.81896,2495.2,2495.1,1.2886]
[1730060140137,1.22019,2495.2,2495.1,2.84696959]
[1730060140632,1.22019,2495.2,2495.1,2.44572959]
[1730060141532,0.40123,2495.2,2495.1,2.44572959]
[1730060141737,0.40123,2495.2,2495.1,2.84696959]
[1730060150341,1.15712959,2495.3,2494.9,4.25996271]
[1730060150541,0.81016,2495.1,2495.0,1.55836959]
[1730060150841,0.85816,2495.2,2495.0,1.55836959]
[1730060151146,0.35816,2495.2,2495.0,1.55836959]
[1730060151349,0.75939,2495.2,2495.1,0.4378]
[1730060152444,0.75939,2495.2,2495.1,0.83904]
[1730060153650,0.75939,2495.2,2495.1,0.4378]
[1730060153953,0.75939,2495.2,2495.1,0.83904]
[1730060154152,0.75939,2495.2,2495.1,0.4378]
[1730060154651,0.75939,2495.2,2495.1,0.83904]
[1730060154851,0.40123,2495.2,2495.1,1.99616959]
[1730060155042,0.40123,2495.2,2495.1,2.44286959]
[1730060162765,0.40123,2495.2,2495.1,3.4950323]
[1730060166360,0.40123,2495.2,2495.1,3.0937923]
[1730060166566,0.40123,2495.2,2495.1,1.93666271]
[1730060167064,0.40123,2495.2,2495.1,2.33790271]
[1730060167264,0.40123,2495.2,2495.1,1.93666271]
[1730060167466,0.40123,2495.2,2495.1,1.05216271]
[1730060167665,0.40124,2495.1,2495.0,2.6105423]
[1730060167867,0.40124,2495.1,2495.0,4.61837267]
[1730060169764,1.15712959,2495.1,2494.8,1.57863393]
[1730060169958,0.84976,2495.0,2494.9,1.05343883]
[1730060170265,0.40131,2494.7,2494.6,1.05343883]
[1730060170467,1.55843959,2494.7,2494.6,1.05343883]
[1730060170663,1.15712959,2494.7,2494.5,1.55846959]
[1730060170879,1.29172,2494.6,2494.5,1.55846959]
[1730060171965,1.29172,2494.6,2494.5,1.15712959]
[1730060172267,1.29172,2494.6,2494.5,1.55846959]
[1730060173570,1.29172,2494.6,2494.5,1.15712959]
[1730060174166,1.29172,2494.6,2494.5,1.55846959]
[1730060174361,1.29172,2494.6,2494.5,1.15712959]
[1730060174568,1.29172,2494.6,2494.5,1.55846959]
[1730060174872,1.29172,2494.6,2494.5,1.15712959]
[1730060175373,1.29172,2494.6,2494.5,1.55846959]
[1730060175762,0.40131,2494.8,2494.7,0.4013]
[1730060175973,0.40129,2494.9,2494.8,0.40127]
[1730060176267,0.40129,2494.9,2494.8,2.42569959]
[1730060177064,1.24936,2495.1,2495.0,0.40126]
[1730060177265,1.24936,2495.1,2495.0,1.55838959]
[1730060177465,0.40126,2495.1,2495.0,1.55838959]
[1730060180676,0.40126,2495.1,2494.8,0.8673]
[1730060180677,0.40126,2495.0,2494.9,1.55839959]
[1730060182376,0.40126,2495.0,2494.9,0.40127]
[1730060182568,0.40127,2494.9,2494.8,1.26859]
[1730060182771,1.55839959,2494.9,2494.8,0.4244]
[1730060182967,2.03272959,2494.9,2494.7,1.55841959]
[1730060183169,0.40129,2494.8,2494.7,1.55841959]
[1730060189579,0.8756,2494.9,2494.7,1.15712959]
[1730060189783,0.40129,2494.9,2494.8,1.55841959]
[1730060195585,0.40129,2494.9,2494.8,0.40129]
[1730060197799,4.21083,2495.3,2494.8,1.15712959]
[1730060198085,3.60902,2495.3,2495.2,1.55835959]
[1730060198994,3.60902,2495.3,2495.2,1.98245959]
[1730060199286,2.00952959,2495.4,2495.3,0.40121]
[1730060199287,0.40121,2495.4,2495.3,0.40121]
[1730060199482,0.40121,2495.4,2495.3,1.55833959]
[1730060200191,0.40119,2495.5,2495.4,0.40119]
[1730060200484,0.40119,2495.5,2495.4,1.55831959]
[1730060203791,0.40117,2495.6,2495.5,0.40116]
[1730060203984,0.40117,2495.6,2495.5,1.55828959]
[1730060207086,0.40116,2495.7,2495.6,0.40116]
[1730060207285,0.40116,2495.7,2495.6,2.40938959]
[1730060210994,0.40116,2495.7,2495.6,1.55828959]
[1730060212194,0.4404,2495.9,2495.6,1.15712959]
[1730060212390,0.82649,2496.1,2496.0,0.4011]
[1730060212590,0.82649,2496.1,2496.0,1.55822959]
[1730060212887,3.2078,2496.2,2496.0,1.15712959]
[1730060213084,3.60888,2496.2,2496.1,1.55820959]
[1730060213397,3.2078,2496.2,2496.1,1.55820959]
[1730060213690,0.436,2496.3,2496.1,1.15712959]
[1730060213896,0.83706,2496.3,2496.2,1.55818959]
[1730060215096,2.40052959,2496.5,2496.2,1.15712959]
[1730060215398,0.40105,2496.4,2496.3,1.96985959]
[1730060215996,0.40103,2496.5,2496.4,0.40102]
[1730060216296,0.40103,2496.5,2496.4,1.55814959]
[1730060216499,0.40103,2496.5,2496.4,1.96964959]
[1730060220602,0.40103,2496.5,2496.4,1.96965959]
[1730060220792,1.55815959,2496.5,2496.4,0.4115]
[1730060221197,1.55815959,2496.5,2496.4,0.81253]
[1730060221397,1.55815959,2496.5,2496.4,0.4115]
[1730060221593,1.55815959,2496.5,2496.4,0.81253]
[1730060222188,1.55815959,2496.5,2496.4,0.4115]
[1730060222393,0.40103,2496.4,2496.3,1.96986959]
[1730060222596,0.40103,2496.4,2496.3,2.39496959]
[1730060222597,0.82903,2496.4,2496.3,2.39496959]
[1730060224000,0.428,2496.4,2496.3,2.39496959]
[1730060224201,1.55815959,2496.5,2496.4,0.40103]
[1730060224400,0.40103,2496.5,2496.4,1.55815959]
[1730060226196,1.55815959,2496.5,2496.4,1.15712959]
[1730060226709,1.55815959,2496.5,2496.4,1.55815959]
[1730060227305,1.55815959,2496.5,2496.4,1.15712959]
[1730060227606,0.40106,2496.2,2496.1,0.83707]
[1730060227804,0.40106,2496.2,2496.1,2.43459959]
[1730060229309,0.40106,2496.3,2496.2,0.40105]
[1730060229607,0.40106,2496.3,2496.2,1.55817959]
[1730060229809,0.40106,2496.3,2496.2,1.97277959]
[1730060230508,0.40106,2496.3,2496.2,0.81565]
[1730060231106,0.40106,2496.3,2496.2,0.81566]
[1730060232706,0.40106,2496.2,2496.1,1.59752959]
[1730060232908,0.40106,2496.2,2496.1,0.4404]
[1730060233102,0.40106,2496.2,2496.1,0.84148]
[1730060233609,0.40106,2496.2,2496.1,1.99860959]
[1730060239705,0.40106,2496.3,2496.2,0.40104]
[1730060239911,0.40105,2496.4,2496.3,0.40103]
[1730060240106,0.40101,2496.6,2496.5,0.401]
[1730060240314,0.40101,2496.6,2496.5,1.55812959]
[1730060241509,1.55813959,2496.6,2496.5,1.55812959]
[1730060242518,1.55813959,2496.6,2496.5,0.401]
[1730060245616,1.55813959,2496.6,2496.5,1.55812959]
[1730060246019,0.40101,2496.6,2496.5,1.55812959]
[1730060248520,1.15712959,2496.8,2496.5,1.15712959]
[1730060248721,2.37609959,2496.8,2496.7,1.55810959]
[1730060248927,1.21897,2496.8,2496.7,1.55810959]
[1730060249226,0.40097,2496.9,2496.8,0.40095]
[1730060249525,0.40097,2496.9,2496.8,1.97347959]
[1730060249723,0.40097,2496.9,2496.8,2.81707959]
[1730060249919,5.81249959,2497.2,2496.8,2.41612959]
[1730060250128,0.40095,2497.1,2497.0,1.55805959]
[1730060251119,0.40095,2497.1,2497.0,1.15712959]
[1730060252030,0.40094,2497.0,2496.9,1.55806959]
[1730060254127,0.40094,2497.0,2496.9,1.15712959]
[1730060255917,0.40094,2497.0,2496.4,0.40101]
[1730060255918,0.40103,2496.5,2496.4,0.40101]
[1730060256123,0.40103,2496.5,2496.4,1.55813959]
[1730060257222,0.40103,2496.5,2496.4,1.60762959]
[1730060257422,0.40103,2496.5,2496.4,2.00865959]
[1730060257827,0.40103,2496.5,2496.4,1.60762959]
[1730060258129,0.40103,2496.5,2496.4,2.00865959]
[1730060259330,0.40103,2496.5,2496.4,1.60762959]
[1730060259532,0.40103,2496.5,2496.4,2.00865959]
[1730060260425,0.40103,2496.5,2496.4,1.60762959]
[1730060260633,0.40103,2496.5,2496.4,2.00865959]
[1730060260947,0.40115,2495.8,2495.7,0.40114]
[1730060261128,1.55826959,2495.9,2495.8,0.8315]
[1730060261329,1.55826959,2495.9,2495.8,0.4211]
[1730060261630,0.40114,2495.7,2495.6,1.15712959]
[1730060262619,1.55826959,2495.7,2495.6,1.15712959]
[1730060266031,0.40116,2495.6,2495.5,0.81157]
[1730060267136,1.55828959,2495.6,2495.5,0.81157]
[1730060268130,1.55828959,2495.6,2495.5,0.4104]
[1730060268526,0.40118,2495.5,2495.4,2.41180959]
[1730060268936,1.55830959,2495.5,2495.4,2.41180959]
[1730060269136,1.55830959,2495.5,2495.4,1.25468]
[1730060269537,0.40118,2495.5,2495.4,2.41180959]
[1730060270033,1.55830959,2495.5,2495.4,0.8535]
[1730060270239,1.55830959,2495.5,2495.4,1.25469]
[1730060270437,1.55830959,2495.5,2495.4,0.8535]
[1730060270629,1.55830959,2495.5,2495.4,0.82229]
[1730060270837,1.55830959,2495.5,2495.4,0.4211]
[1730060271035,1.55830959,2495.5,2495.4,0.82229]
[1730060271334,1.55830959,2495.5,2495.4,0.4211]
[1730060271930,1.55830959,2495.5,2495.4,0.82229]
[1730060272733,0.40118,2495.5,2495.4,0.82229]
[1730060272928,0.40118,2495.5,2495.4,1.97941959]
[1730060274039,0.40118,2495.5,2495.4,0.82229]
[1730060275140,3.2078,2495.7,2495.4,0.82229]
[1730060275443,1.15712959,2495.5,2495.4,0.82229]
[1730060275741,0.65742959,2495.5,2495.4,0.82229]
[1730060275945,0.40118,2495.5,2495.4,0.82229]
[1730060276137,4.21064,2495.8,2495.4,0.4211]
[1730060276340,1.55830959,2495.5,2495.4,0.82229]
[1730060276637,0.40118,2495.5,2495.4,0.82229]
[1730060276828,1.55830959,2495.5,2495.4,0.82229]
[1730060277035,1.15710959,2495.5,2495.4,0.82229]
[1730060277236,0.95730959,2495.5,2495.4,0.82229]
[1730060277741,1.35848959,2495.5,2495.4,0.82229]
[1730060278445,0.40118,2495.5,2495.4,1.97941959]
[1730060280336,0.40118,2495.5,2495.4,1.57822959]
[1730060280643,0.40118,2495.5,2495.4,1.97941959]
[1730060282934,0.40118,2495.5,2495.4,0.4211]
[1730060283458,1.27148,2495.5,2495.4,0.4211]
[1730060283941,2.42860959,2495.5,2495.4,0.4211]
[1730060284450,1.27148,2495.5,2495.4,0.82229]
[1730060285033,0.40118,2495.5,2495.4,0.82229]
[1730060285348,0.40116,2495.7,2495.6,0.40115]
[1730060285644,0.40116,2495.7,2495.6,1.55827959]
[1730060286144,1.55828959,2495.7,2495.6,1.97798959]
[1730060290541,0.40116,2495.7,2495.6,1.97798959]
[1730060295552,5.16432959,2495.7,2495.4,0.4211]
[1730060295747,0.40118,2495.5,2495.4,0.40119]
[1730060295947,0.40119,2495.4,2495.3,1.96841959]
[1730060296453,1.15712959,2495.4,2495.3,1.96841959]
[1730060296651,1.55831959,2495.4,2495.3,1.96841959]
[1730060296846,0.40119,2495.4,2495.3,1.96841959]
[1730060297252,1.37040959,2495.5,2495.3,1.96841959]
[1730060297449,0.40119,2495.4,2495.3,1.96841959]
[1730060297754,0.40119,2495.4,2495.3,5.17621959]
[1730060298551,0.61447,2495.5,2495.4,0.40119]
[1730060298749,0.40119,2495.5,2495.4,0.40119]
[1730060301354,0.40119,2495.4,2495.3,4.0191]
[1730060301647,0.40119,2495.4,2495.3,5.17622959]
[1730060302048,2.44751959,2495.6,2495.3,5.17622959]
[1730060302259,2.44750959,2495.6,2495.3,5.17622959]
[1730060302453,2.84866959,2495.6,2495.5,1.15712959]
[1730060303155,0.40118,2495.5,2495.4,1.55830959]
[1730060304957,0.40118,2495.5,2495.4,0.40118]
[1730060305745,2.44750959,2495.6,2495.3,4.77502959]
[1730060305958,0.40119,2495.4,2495.3,1.96842959]
[1730060308963,0.40119,2495.4,2495.3,0.4101]
[1730060309155,0.40119,2495.4,2495.3,0.81131]
[1730060309356,0.40123,2495.2,2495.1,0.8718]
[1730060309549,1.55835959,2495.2,2495.1,0.4205]
[1730060309758,5.16512959,2495.2,2494.9,1.15712959]
[1730060309958,0.40127,2494.9,2494.8,2.84820959]
[1730060319261,0.40125,2495.1,2495.0,0.40124]
[1730060319461,0.40123,2495.2,2495.1,0.40123]
[1730060319653,0.40123,2495.2,2495.1,1.55835959]
[1730060323067,0.40123,2495.3,2495.2,0.4012]
[1730060323255,0.40123,2495.3,2495.2,1.97942959]
[1730060326063,0.40123,2495.3,2495.2,1.57822959]
[1730060326363,1.26423,2495.3,2495.2,1.57822959]
[1730060326563,1.26423,2495.3,2495.2,1.97945959]
[1730060327869,0.863,2495.3,2495.1,1.15712959]
[1730060328068,0.40123,2495.2,2495.1,1.15712959]
[1730060329068,0.40123,2495.2,2495.1,1.55836959]
[1730060330459,1.00296,2495.5,2495.1,1.15712959]
[1730060330666,0.40123,2495.3,2495.2,0.4012]
[1730060332065,0.40123,2495.3,2495.2,1.55832959]
[1730060333164,4.0704,2495.7,2495.0,3.2078]
[1730060333359,0.40126,2495.1,2495.0,0.40124]
[1730060333566,0.40123,2495.2,2495.1,1.15712959]
[1730060333871,1.26353,2495.2,2495.1,1.15712959]
[1730060335164,0.40126,2495.0,2494.9,0.4244]
[1730060335364,0.40126,2495.0,2494.9,1.58152959]
[1730060336665,0.40126,2495.0,2494.9,1.98279959]
[1730060337173,0.40126,2495.0,2494.9,1.58152959]
[1730060337661,0.40126,2495.0,2494.9,1.98279959]
[1730060339365,0.40126,2495.0,2494.9,1.58152959]
[1730060339564,0.40126,2495.0,2494.9,1.98279959]
[1730060339966,0.818,2495.1,2494.8,0.4224]
[1730060339967,0.40127,2494.9,2494.8,0.4224]
[1730060340264,0.82697,2494.9,2494.8,1.57952959]
[1730060341471,0.40132,2494.6,2494.5,0.4093]
[1730060341670,0.40132,2494.6,2494.5,1.98832959]
[1730060341972,0.40132,2494.6,2494.5,2.38966959]
[1730060342174,0.40131,2494.7,2494.6,0.40131]
[1730060342376,0.40131,2494.7,2494.6,1.55843959]
[1730060342668,1.2193,2494.8,2494.7,0.4013]
[1730060342874,1.2193,2494.8,2494.7,1.98292959]
[1730060343971,0.818,2495.0,2494.9,0.40126]
[1730060344275,1.21922,2495.3,2495.2,0.40121]
[1730060344466,1.21922,2495.3,2495.2,1.55833959]
[1730060344766,1.43158,2495.7,2495.2,4.36492959]
[1730060344968,3.2078,2495.9,2495.6,2.31425918]
[1730060345173,0.40111,2495.9,2495.8,1.15712959]
[1730060345969,0.81151,2495.9,2495.8,1.15712959]
[1730060346161,0.81151,2495.9,2495.7,0.4158]
[1730060346162,0.40113,2495.8,2495.7,1.15712959]
[1730060346362,4.40833,2495.8,2495.7,1.15712959]
[1730060348371,0.40118,2495.5,2495.4,0.85358]
[1730060348573,0.40118,2495.5,2495.4,2.01070959]
[1730060350178,0.40118,2495.5,2495.4,1.60952959]
[1730060351676,0.40118,2495.5,2495.4,0.4524]
[1730060351877,0.40121,2495.3,2495.2,1.15712959]
[1730060352077,0.40121,2495.3,2495.2,1.57552959]
[1730060353671,6.16815959,2495.3,2494.9,0.4515]
[1730060353876,1.55838959,2495.0,2494.9,0.8699]
[1730060354081,0.40126,2495.0,2494.9,0.4184]
[1730060354678,0.83106,2495.0,2494.9,0.4184]
[1730060354879,1.98818959,2495.0,2494.9,0.4184]
[1730060355385,5.99618959,2495.0,2494.9,0.4184]
[1730060356585,4.83906,2495.0,2494.9,0.4184]
[1730060363096,4.83906,2495.0,2494.9,0.81967]
[1730060363280,0.83106,2495.0,2494.9,0.4184]
[1730060364190,0.40131,2494.7,2494.6,1.29281]
[1730060364490,0.00011,2494.7,2494.6,1.29281]
[1730060364785,0.40131,2494.7,2494.6,1.29281]
[1730060369885,0.4013,2494.8,2494.7,0.40129]
[1730060373797,1.43297,2495.0,2494.6,0.8915]
[1730060373994,0.40131,2494.7,2494.6,1.2928]
[1730060376697,0.40131,2494.7,2494.6,2.44959817]